bitfinex/quotes_ETHUSD_20241003
["timestamp","ask_amount","ask_price","bid_price","bid_amount"]
[1727946628642,5.87408849,2337.8,2337.3,4.27842]
[1727946628643,8.55535,2337.8,2337.3,4.27842]
[1727946628847,5.44635449,2338.5,2337.3,4.27842]
[1727946629033,4.27768,2337.8,2337.3,4.27842]
[1727946629612,4.27768,2337.8,2337.3,4.27834]
[1727946629819,4.278,2337.6,2337.1,4.2787]
[1727946630127,4.27808,2337.5,2336.8,3.0]
[1727946630316,5.44635449,2337.9,2337.0,4.27896]
[1727946630317,9.72378449,2337.9,2337.0,4.27896]
[1727946630654,9.72378449,2337.9,2336.6,3.0]
[1727946630655,4.27823,2337.5,2336.6,3.0]
[1727946630832,4.27823,2337.5,2336.7,4.27952]
[1727946630833,4.2788,2337.2,2336.7,4.27952]
[1727946631027,4.27823,2337.5,2336.6,3.0]
[1727946631028,4.27821,2337.5,2336.8,5.007272]
[1727946631342,5.44635449,2337.9,2336.8,4.27924]
[1727946631343,4.27791,2337.6,2336.8,4.27924]
[1727946631545,4.27827,2337.4,2336.9,0.427924]
[1727946631861,4.27871,2337.2,2336.6,7.27959]
[1727946632064,4.27846,2337.3,2336.7,4.27953]
[1727946632360,4.27827,2337.4,2336.8,5.435182]
[1727946632517,4.27846,2337.3,2336.8,1.155912]
[1727946632716,4.27827,2337.4,2336.9,0.5435432]
[1727946633051,4.27831,2337.4,2336.9,0.5435432]
[1727946633255,4.27847,2337.3,2336.9,0.5435432]
[1727946633421,4.27858,2337.3,2336.6,4.27968]
[1727946633627,8.55709,2337.3,2336.7,4.27943]
[1727946633842,5.07341622,2337.8,2336.9,4.27915]
[1727946633843,4.27828,2337.4,2336.9,4.27915]
[1727946634440,4.27844,2337.3,2336.7,4.82945]
[1727946634757,4.27826,2337.4,2336.8,4.27922]
[1727946634960,5.07341622,2337.8,2336.4,4.27998]
[1727946635164,4.2787,2337.2,2336.6,4.27963]
[1727946635365,4.27815,2337.5,2336.8,4.27919]
[1727946635571,8.55598,2337.6,2337.0,4.27887]
[1727946635724,4.27798,2337.6,2337.1,0.427887]
[1727946635924,8.556,2337.6,2337.1,0.427887]
[1727946636322,5.07341622,2338.1,2337.1,0.427887]
[1727946636323,4.27765,2337.8,2337.1,0.427887]
[1727946636528,5.07341622,2338.1,2336.5,3.0]
[1727946636529,4.27735,2337.9,2337.3,4.27832]
[1727946636743,5.07341622,2338.1,2336.8,3.55]
[1727946636744,4.27772,2337.7,2337.1,4.2788]
[1727946636944,4.27728,2338.0,2337.5,4.27803]
[1727946637438,4.27735,2337.9,2337.4,4.27815]
[1727946637642,4.27592,2338.7,2337.4,4.27815]
[1727946637643,4.2758,2338.8,2338.2,4.27677]
[1727946637843,0.56371854,2339.0,2337.6,0.55]
[1727946638096,4.27632,2338.5,2337.9,4.27724]
[1727946638257,4.27609,2338.6,2338.0,0.427724]
[1727946638455,4.276,2338.7,2338.1,4.27689]
[1727946638683,4.27625,2338.5,2337.9,4.27725]
[1727946638984,4.27573,2338.8,2338.1,4.27694]
[1727946639291,4.27573,2338.8,2337.9,0.427722]
[1727946639292,4.27613,2338.6,2338.0,4.277]
[1727946639438,4.27613,2338.6,2337.6,7.82777]
[1727946639643,4.27613,2338.6,2338.0,4.27707]
[1727946639865,4.27613,2338.6,2337.9,4.27734]
[1727946640089,4.27613,2338.6,2337.5,5.50123122]
[1727946640090,4.27684,2338.2,2337.5,4.705775]
[1727946640245,4.27684,2338.2,2337.7,4.27769]
[1727946640581,4.27595,2338.7,2338.0,4.27704]
[1727946640785,4.27595,2338.7,2338.1,4.27686]
[1727946640968,4.27636,2338.5,2338.0,0.427704]
[1727946641168,4.2759,2338.7,2338.1,4.27684]
[1727946641369,4.27635,2338.5,2338.0,0.427704]
[1727946641570,4.27598,2338.7,2338.1,4.27694]
[1727946641777,4.27598,2338.7,2338.1,4.7474044]
[1727946642095,4.27571,2338.8,2338.2,4.27676]
[1727946642255,4.27571,2338.8,2338.3,0.90241644]
[1727946642592,0.1157543,2339.0,2337.5,9.77928122]
[1727946642593,4.27589,2338.7,2338.2,4.27677]
[1727946642745,4.27607,2338.6,2338.3,0.427677]
[1727946642947,4.2757,2338.8,2338.3,4.27655]
[1727946643285,0.1157543,2339.0,2338.2,4.27676]
[1727946643482,4.27601,2338.7,2338.2,0.855362]
[1727946643684,8.55128,2338.9,2338.3,4.27649]
[1727946643891,4.27562,2338.9,2338.4,4.27641]
[1727946644193,8.55124,2338.9,2338.5,0.87860505]
[1727946644395,8.55124,2338.9,2338.6,0.0374036]
[1727946644396,4.27562,2338.9,2338.6,0.0374036]
[1727946644704,4.27571,2338.8,2338.5,0.85529]
[1727946644864,0.1157543,2339.0,2338.6,4.27597]
[1727946645400,0.1157543,2339.0,2338.4,4.82626]
[1727946645401,0.1157543,2339.0,2338.5,4.27612]
[1727946645582,0.1157543,2339.0,2338.6,4.758642]
[1727946645760,0.1157543,2339.0,2338.6,0.482612]
[1727946646154,0.1157543,2339.0,2338.9,4.27551]
[1727946646606,0.1157543,2339.0,2338.9,7.27551]
[1727946647503,0.1157543,2339.0,2338.9,7.82551]
[1727946648320,0.1157543,2339.0,2338.9,4.27551]
[1727946648473,0.1157543,2339.0,2338.6,4.27603]
[1727946648673,0.1157543,2339.0,2338.7,0.427603]
[1727946649090,0.1157543,2339.0,2338.7,8.55153]
[1727946649306,0.1157543,2339.0,2338.7,4.27575]
[1727946649499,0.1157543,2339.0,2338.5,4.27611]
[1727946649895,0.1157543,2339.0,2338.0,4.27714]
[1727946649896,4.3911043,2339.0,2338.0,4.27714]
[1727946650116,4.27588,2338.7,2338.2,4.27663]
[1727946650286,0.1157543,2339.0,2337.5,4.705825]
[1727946650287,0.1157543,2339.0,2337.6,4.27784]
[1727946650496,0.1157543,2339.0,2338.2,4.27666]
[1727946650796,4.27577,2338.8,2338.2,4.27666]
[1727946650999,4.27577,2338.8,2338.3,4.27659]
[1727946651197,4.27577,2338.8,2338.2,4.27666]
[1727946651384,4.27566,2338.9,2338.3,0.427666]
[1727946651589,4.27588,2338.7,2338.3,0.427666]
[1727946651788,4.27566,2338.9,2338.4,4.2764]
[1727946652129,4.27566,2338.9,2338.3,0.427666]
[1727946652130,4.27577,2338.8,2338.3,4.27643]
[1727946652428,4.27554,2338.9,2338.4,4.704023]
[1727946652606,4.27554,2338.9,2338.4,0.427643]
[1727946652773,4.27554,2338.9,2338.2,4.27676]
[1727946652774,4.27588,2338.7,2338.2,4.27676]
[1727946653218,4.27607,2338.6,2338.1,3.0]
[1727946653433,4.3911143,2339.0,2337.6,4.7483825]
[1727946653434,4.27664,2338.3,2337.6,4.7483825]
[1727946653641,5.07341622,2338.5,2337.6,4.7483825]
[1727946653642,4.27718,2338.0,2337.6,0.4705825]
[1727946653797,4.27744,2337.9,2337.4,4.27816]
[1727946654127,4.27718,2338.0,2337.5,4.27799]
[1727946654279,4.27699,2338.1,2337.5,0.427816]
[1727946654480,4.27717,2338.0,2337.5,4.705856]
[1727946654832,4.27699,2338.1,2337.6,0.8984016]
[1727946655127,4.27734,2337.9,2337.5,0.427816]
[1727946655277,4.27699,2338.1,2337.5,0.427816]
[1727946655483,4.27747,2337.9,2337.5,0.427816]
[1727946655723,4.27703,2338.1,2337.5,4.27793]
[1727946655928,8.55414,2338.1,2337.5,4.27793]
[1727946656238,5.07341622,2338.2,2337.2,4.27851]
[1727946656515,4.27662,2338.3,2337.7,4.27761]
[1727946656516,4.27669,2338.3,2337.7,4.27761]
[1727946656726,4.27687,2338.2,2337.6,4.27781]
[1727946656878,4.27669,2338.3,2337.8,4.2775]
[1727946657320,4.27644,2338.4,2337.9,4.27734]
[1727946657524,4.27653,2338.4,2337.9,4.27734]
[1727946657681,4.27662,2338.3,2338.0,0.427734]
[1727946657883,4.27653,2338.4,2338.0,0.427734]
[1727946658085,4.27607,2338.6,2338.1,4.27696]
[1727946658317,4.27607,2338.6,2338.0,4.704854]
[1727946658318,4.27633,2338.5,2338.0,4.704854]
[1727946658524,4.27633,2338.5,2338.1,0.4704854]
[1727946659364,4.27626,2338.5,2338.1,0.4704854]
[1727946660023,4.27618,2338.6,2338.1,4.7474354]
[1727946660223,5.07341622,2338.8,2338.2,0.94522894]
[1727946660530,0.1157543,2339.0,2337.4,4.27809]
[1727946660531,4.27702,2338.1,2337.4,4.27809]
[1727946660724,4.27672,2338.3,2337.7,4.27758]
[1727946660930,4.27608,2338.6,2338.0,4.27706]
[1727946661129,0.1157543,2339.0,2338.4,4.27642]
[1727946661420,0.1157543,2339.0,2338.8,4.27555]
[1727946661659,0.1157543,2339.0,2338.9,4.27551]
[1727946661954,0.1157543,2339.0,2338.9,7.82551]
[1727946662754,4.27272,2340.5,2339.9,4.27357]
[1727946663045,8.54542,2340.5,2340.0,0.427357]
[1727946663204,4.27298,2340.3,2340.0,0.427357]
[1727946663383,5.07341622,2340.3,2339.5,4.2743]
[1727946663564,4.27343,2340.1,2339.6,0.72743]
[1727946663752,4.27193,2340.9,2339.6,0.72743]
[1727946663753,8.54582,2340.4,2339.8,4.27377]
[1727946663953,4.2729,2340.4,2339.7,4.27388]
[1727946664190,8.5444,2340.8,2340.2,4.27304]
[1727946664390,8.5444,2340.8,2340.1,4.27319]
[1727946664391,4.2722,2340.8,2340.3,4.27291]
[1727946664556,4.27277,2340.4,2339.8,0.427388]
[1727946664760,4.27334,2340.1,2339.6,3.0]
[1727946664990,9.34648622,2340.3,2339.6,7.27405]
[1727946665303,9.34648622,2340.3,2339.7,1.154832]
[1727946665304,4.27333,2340.1,2339.7,1.154832]
[1727946665784,4.27367,2340.0,2339.4,7.27458]
[1727946665951,4.27333,2340.1,2339.6,4.27421]
[1727946666356,9.34650622,2340.3,2339.4,3.0]
[1727946666357,4.27355,2340.0,2339.4,3.0]
[1727946666550,4.27355,2340.0,2339.2,4.27484]
[1727946666551,4.27405,2339.7,2339.2,4.27484]
[1727946666758,4.2738,2339.9,2339.2,4.27484]
[1727946666759,4.27389,2339.8,2339.3,0.427484]
[1727946667091,9.34692622,2340.0,2339.4,4.27447]
[1727946667291,4.27351,2340.0,2339.4,4.27447]
[1727946667500,4.27369,2339.9,2339.3,4.27465]
[1727946667799,4.27366,2340.0,2339.3,4.27465]
[1727946668021,4.27366,2340.0,2338.6,4.27588]
[1727946668022,4.27271,2340.5,2339.8,4.27385]
[1727946668170,5.07341622,2340.6,2339.1,7.8251]
[1727946668372,4.27273,2340.5,2339.2,4.2749]
[1727946668569,3.0,2340.9,2340.1,4.27331]
[1727946668570,4.27234,2340.7,2340.1,4.27331]
[1727946668771,9.34541622,2340.9,2340.2,4.27311]
[1727946668772,4.27207,2340.8,2340.2,4.27311]
[1727946669159,4.27241,2340.6,2340.0,4.27339]
[1727946669358,5.07341622,2340.9,2340.3,4.27288]
[1727946669596,9.34529622,2340.9,2340.3,4.27288]
[1727946669912,4.27231,2340.7,2340.1,4.2732]
[1727946670278,4.27161,2341.1,2340.4,4.27275]
[1727946670279,8.54312,2341.1,2340.4,4.27275]
[1727946670485,4.27152,2341.1,2340.4,4.27275]
[1727946670671,4.2717,2341.0,2340.5,4.27257]
[1727946670872,0.1157543,2341.4,2340.5,4.27257]
[1727946670873,0.1157543,2341.4,2340.8,4.27203]
[1727946671091,4.27113,2341.3,2340.7,4.27213]
[1727946671307,4.27113,2341.3,2340.2,4.27304]
[1727946671308,0.1157543,2341.4,2340.6,4.2724]
[1727946671501,4.2716,2341.1,2340.5,4.27257]
[1727946671686,4.27126,2341.3,2340.8,4.27203]
[1727946671869,8.54249,2341.3,2340.8,4.27203]
[1727946672070,4.27151,2341.1,2340.5,4.27258]
[1727946672411,5.07341622,2341.2,2340.8,4.27203]
[1727946672714,0.1157543,2341.4,2340.1,3.42732]
[1727946672859,0.1157543,2341.4,2340.9,0.55]
[1727946673065,0.1157543,2341.4,2341.3,4.27113]
[1727946673259,0.1157543,2341.4,2341.3,4.82113]
[1727946673562,0.1157543,2341.4,2341.3,7.82113]
[1727946673990,0.1157543,2341.4,2341.1,4.27137]
[1727946674309,0.1157543,2341.4,2341.1,3.0]
[1727946674465,0.1157543,2341.4,2341.0,3.0]
[1727946674668,0.1157543,2341.4,2341.0,7.27167]
[1727946675020,4.27177,2341.0,2340.4,8.54539]
[1727946675159,0.1157543,2341.4,2340.2,0.342732]
[1727946675160,5.07341622,2340.9,2340.2,0.342732]
[1727946675359,5.07341622,2340.9,2340.1,4.70063]
[1727946675360,4.27255,2340.6,2340.1,4.70063]
[1727946675557,0.1157543,2341.4,2340.2,5.170422]
[1727946675558,4.2717,2341.0,2340.2,5.170422]
[1727946675802,0.1157543,2341.4,2340.1,0.42732]
[1727946675803,4.27244,2340.6,2340.1,0.42732]
[1727946675999,4.27244,2340.6,2339.6,4.27414]
[1727946676000,5.50058622,2340.9,2339.8,4.27373]
[1727946676208,5.50058622,2340.9,2339.6,4.27408]
[1727946676209,4.27304,2340.3,2339.7,4.27404]
[1727946676361,5.07341622,2340.6,2339.7,4.701448]
[1727946676362,4.27314,2340.2,2339.7,4.701448]
[1727946676705,4.27314,2340.2,2339.7,0.427408]
[1727946676706,4.27341,2340.1,2339.7,0.427408]
[1727946676890,9.34637622,2340.3,2339.8,4.27385]
[1727946677060,9.34637622,2340.3,2339.8,5.1713848]
[1727946677571,3.0,2341.0,2339.8,0.8975348]
[1727946677572,9.69307142,2341.0,2339.8,0.8975348]
[1727946677904,9.69307142,2341.0,2340.4,4.27275]
[1727946677905,4.27168,2341.0,2340.4,4.27275]
[1727946678059,4.2718,2341.0,2340.4,4.27265]
[1727946678258,4.2715,2341.1,2340.6,4.27239]
[1727946678461,4.27195,2340.9,2340.4,5.127214]
[1727946678703,4.27229,2340.7,2340.1,4.27332]
[1727946678909,5.42129142,2341.0,2340.2,0.427332]
[1727946679064,4.27267,2340.5,2339.9,8.54716]
[1727946679401,4.27296,2340.3,2339.9,3.0]
[1727946679586,4.27267,2340.5,2340.0,0.727384]
[1727946679899,4.27267,2340.5,2340.1,0.02618032]
[1727946680108,4.27283,2340.4,2339.9,3.0]
[1727946680261,5.42129142,2340.7,2340.0,0.3]
[1727946680262,4.27269,2340.5,2340.0,0.3]
[1727946680606,4.27242,2340.6,2340.1,4.27317]
[1727946680759,9.69360142,2340.7,2340.2,4.2731]
[1727946680959,4.27223,2340.7,2340.2,4.2731]
[1727946681167,5.42129142,2340.8,2340.0,0.3]
[1727946681361,4.27327,2340.2,2339.6,4.27411]
[1727946681589,4.27327,2340.2,2339.0,0.43845571]
[1727946681590,4.27335,2340.1,2339.0,0.43845571]
[1727946681807,4.27335,2340.1,2338.9,4.27549]
[1727946681808,4.27377,2339.9,2339.3,4.27472]
[1727946682009,4.27377,2339.9,2339.2,4.27483]
[1727946682010,4.27374,2339.9,2339.2,4.27483]
[1727946682163,4.27406,2339.7,2339.2,4.27483]
[1727946682362,4.27468,2339.4,2338.7,4.2758]
[1727946682582,5.42129142,2339.6,2338.9,4.2755]
[1727946682583,9.69556142,2339.6,2338.9,4.2755]
[1727946682791,9.69556142,2339.6,2339.0,0.42755]
[1727946682792,4.27479,2339.3,2339.0,0.42755]
[1727946683007,5.42129142,2339.6,2338.5,4.27615]
[1727946683163,4.27538,2339.0,2338.5,4.27615]
[1727946683364,5.42129142,2339.0,2338.1,4.27686]
[1727946683611,5.42129142,2339.0,2338.0,4.27705]
[1727946683612,4.27616,2338.6,2338.0,4.27705]
[1727946683916,4.2747,2339.4,2338.1,0.855423]
[1727946684064,4.2747,2339.4,2337.5,5.97135748]
[1727946684065,4.27498,2339.2,2338.6,4.27597]
[1727946684261,4.27466,2339.4,2338.4,4.27629]
[1727946684459,4.27543,2339.0,2338.4,4.27629]
[1727946684760,4.27474,2339.4,2338.6,4.27603]
[1727946684968,4.27369,2339.9,2337.9,4.27732]
[1727946684969,8.54878,2339.6,2338.8,4.27558]
[1727946685178,5.42129142,2339.9,2338.8,4.27558]
[1727946685179,4.27493,2339.3,2338.9,0.427558]
[1727946685377,4.27493,2339.3,2338.8,4.2756]
[1727946685378,8.54982,2339.3,2338.8,4.2756]
[1727946685703,4.27481,2339.3,2338.8,4.27567]
[1727946685898,4.27327,2340.2,2338.8,4.27567]
[1727946685899,4.27387,2339.8,2339.2,4.27484]
[1727946686105,4.27387,2339.8,2339.1,4.2751]
[1727946686401,4.27424,2339.6,2339.1,4.27503]
[1727946686614,4.2747,2339.4,2338.9,7.702937]
[1727946686815,4.27434,2339.6,2338.9,3.427567]
[1727946687004,4.2746,2339.4,2338.9,4.703047]
[1727946687324,4.27327,2340.2,2339.2,0.55]
[1727946687525,4.27395,2339.8,2339.3,3.0]
[1727946687840,4.27369,2339.9,2339.4,5.002074]
[1727946688038,5.42129142,2340.3,2339.2,4.27484]
[1727946688251,8.54796,2339.8,2339.2,4.27484]
[1727946688428,12.00093442,2340.3,2339.3,0.427484]
[1727946688736,4.27328,2340.2,2339.3,4.27467]
[1727946688958,12.00093442,2340.3,2339.4,4.27455]
[1727946689153,4.27347,2340.1,2339.6,4.27418]
[1727946689465,4.27352,2340.0,2339.2,7.27482]
[1727946689605,12.00093442,2340.3,2339.6,4.27422]
[1727946689606,4.27324,2340.2,2339.6,4.27422]
[1727946689799,12.00093442,2340.3,2339.7,4.27395]
[1727946690002,6.579643,2340.3,2339.9,4.27368]
[1727946690242,4.27291,2340.4,2339.9,4.27368]
[1727946690451,4.27291,2340.4,2339.8,0.03327509]
[1727946690452,4.27291,2340.4,2339.8,4.27383]
[1727946690758,4.27333,2340.1,2339.6,4.27408]
[1727946691363,4.27333,2340.1,2339.3,3.0]
[1727946691364,4.2726,2340.5,2339.8,4.2737]
[1727946691664,12.00093442,2340.7,2339.6,4.27409]
[1727946691665,4.27343,2340.1,2339.6,4.27409]
[1727946691959,4.27343,2340.1,2339.7,4.27405]
[1727946692130,4.27343,2340.1,2339.7,5.128864]
[1727946692330,8.5469,2340.1,2339.7,0.854814]
[1727946692663,4.27396,2339.8,2339.3,4.27477]
[1727946693169,4.27282,2340.4,2338.4,4.70495]
[1727946693170,4.27268,2340.5,2340.0,4.27338]
[1727946693406,4.27236,2340.7,2340.1,4.27329]
[1727946693614,4.27198,2340.9,2340.3,4.27284]
[1727946693816,8.5454,2340.5,2339.9,4.27357]
[1727946694107,4.27269,2340.5,2340.1,4.2733]
[1727946694314,4.27233,2340.7,2340.1,4.2733]
[1727946694315,4.27242,2340.6,2340.1,4.2733]
[1727946694484,4.27249,2340.6,2339.8,3.0]
[1727946694808,4.27199,2340.9,2340.2,4.27303]
[1727946695019,5.42129142,2341.1,2340.2,4.27303]
[1727946695020,4.2724,2340.7,2340.2,4.27301]
[1727946695611,4.2725,2340.6,2340.1,4.2733]
[1727946695816,4.2724,2340.7,2340.2,4.27305]
[1727946696011,4.2716,2341.1,2340.6,4.27239]
[1727946696167,4.2716,2341.1,2340.6,9.399212]
[1727946696369,4.27168,2341.0,2340.6,4.27232]
[1727946696615,4.2716,2341.1,2340.6,4.27232]
[1727946696998,4.27158,2341.1,2340.6,4.27231]
[1727946697205,4.27175,2341.0,2340.6,4.27231]
[1727946697530,5.42129142,2340.7,2339.5,4.2743]
[1727946697851,8.5468,2340.1,2339.6,7.27422]
[1727946698138,4.27388,2339.8,2339.3,4.27465]
[1727946698342,4.27332,2340.1,2339.4,0.427465]
[1727946698561,4.27261,2340.5,2339.4,4.27456]
[1727946698703,4.2737,2339.9,2339.5,4.27424]
[1727946699037,4.27352,2340.0,2339.5,8.54857]
[1727946699453,4.27384,2339.9,2339.4,4.27458]
[1727946699605,4.27405,2339.7,2339.2,0.427502]
[1727946699800,4.27405,2339.7,2339.1,4.27502]
[1727946699801,4.27423,2339.6,2339.1,4.27502]
[1727946700353,4.27452,2339.5,2339.0,4.2752]
[1727946700638,4.27452,2339.5,2338.2,0.10667205]
[1727946700639,4.27517,2339.1,2337.5,8.55757807]
[1727946700845,4.27548,2339.0,2338.5,4.2761]
[1727946701450,9.69680142,2338.9,2338.0,4.27709]
[1727946701739,8.55013,2339.2,2338.7,4.27572]
[1727946701942,8.55013,2339.2,2338.5,4.27612]
[1727946701943,4.27505,2339.2,2338.5,4.27612]
[1727946702156,4.27517,2339.1,2338.6,4.27594]
[1727946702440,4.27481,2339.3,2338.8,4.27559]
[1727946702646,4.27472,2339.4,2338.7,4.27573]
[1727946702829,4.27504,2339.2,2338.7,8.55149]
[1727946703031,4.27444,2339.5,2338.9,4.27551]
[1727946703345,4.27444,2339.5,2339.0,0.427551]
[1727946703642,4.27444,2339.5,2339.0,4.27522]
[1727946703826,9.69550142,2339.7,2339.1,4.27507]
[1727946704141,4.27446,2339.5,2339.0,4.27522]
[1727946704482,4.2747,2339.4,2338.9,4.27549]
[1727946704944,4.27446,2339.5,2338.8,4.703094]
[1727946704945,4.27446,2339.5,2339.0,4.27533]
[1727946705130,4.27388,2339.8,2339.3,4.27465]
[1727946705803,4.27388,2339.8,2339.3,4.2747]
[1727946705998,4.27382,2339.9,2339.3,4.2747]
[1727946706201,4.27344,2340.1,2339.2,3.0]
[1727946706440,4.27394,2339.8,2339.4,3.0]
[1727946706801,4.27416,2339.7,2339.2,4.27494]
[1727946707010,8.54767,2339.9,2339.2,4.27494]
[1727946707328,4.27417,2339.7,2339.3,0.427494]
[1727946707637,9.69461142,2340.1,2339.2,4.27487]
[1727946707638,4.27389,2339.8,2339.2,4.27487]
[1727946708011,4.27414,2339.7,2339.2,4.27487]
[1727946708269,4.27442,2339.5,2338.9,0.4703144]
[1727946708407,4.2746,2339.4,2338.9,0.4703144]
[1727946708604,5.42129142,2339.7,2338.6,4.27604]
[1727946708605,4.27526,2339.1,2338.6,4.27604]
[1727946708831,4.27468,2339.4,2338.8,4.27558]
[1727946709032,4.27468,2339.4,2339.0,4.27528]
[1727946709237,4.27452,2339.5,2339.0,8.55047]
[1727946709443,4.27452,2339.5,2339.0,4.27519]
[1727946709444,4.27462,2339.4,2339.0,4.27519]
[1727946709856,4.2745,2339.5,2339.1,4.27512]
[1727946710019,4.27461,2339.4,2339.1,0.855031]
[1727946710349,4.27461,2339.4,2338.9,4.27548]
[1727946710553,4.27418,2339.7,2338.8,0.427558]
[1727946710722,5.42129142,2340.1,2338.8,0.427558]
[1727946710723,4.27379,2339.9,2338.8,7.27561]
[1727946710928,4.2734,2340.1,2339.6,4.27414]
[1727946711235,9.69389142,2340.5,2339.7,0.427414]
[1727946711431,4.27352,2340.0,2339.6,4.2742]
[1727946711842,4.27332,2340.1,2339.6,4.2742]
[1727946712004,4.27324,2340.2,2339.7,4.27403]
[1727946712409,5.06282929,2340.3,2339.0,3.0]
[1727946712410,4.27332,2340.1,2339.5,4.27425]
[1727946712724,4.27332,2340.1,2339.0,3.0]
[1727946712725,4.27305,2340.3,2339.8,4.27375]
[1727946712925,4.27321,2340.2,2339.8,4.27375]
[1727946713159,4.27305,2340.3,2339.8,4.27373]
[1727946713307,4.2727,2340.5,2339.9,4.701033]
[1727946713508,4.27278,2340.4,2340.0,4.27349]
[1727946713706,8.54539,2340.5,2340.0,4.27349]
[1727946713948,4.27279,2340.4,2340.0,5.1709473]
[1727946714339,4.27279,2340.4,2340.0,0.8974573]
[1727946714552,4.27321,2340.2,2339.8,4.27379]
[1727946714757,4.27279,2340.4,2339.4,4.27447]
[1727946714758,5.42270798,2340.4,2339.4,4.27443]
[1727946715056,5.42270798,2340.4,2339.6,4.27423]
[1727946715057,4.2735,2340.0,2339.6,4.27423]
[1727946715424,4.2735,2340.0,2339.4,4.27443]
[1727946715425,8.5471,2340.0,2339.4,4.27443]
[1727946715632,4.27371,2339.9,2339.4,4.27459]
[1727946715812,4.2739,2339.8,2339.3,4.27463]
[1727946716012,5.96497878,2340.4,2339.0,7.27529]
[1727946716243,4.27327,2340.2,2339.6,4.27408]
[1727946716448,4.27327,2340.2,2339.6,4.701488]
[1727946716661,9.69562798,2340.4,2339.8,4.27386]
[1727946716955,4.27304,2340.3,2339.8,4.27386]
[1727946717158,4.27316,2340.2,2339.8,0.8975328]
[1727946717330,4.27351,2340.0,2339.5,3.0]
[1727946717528,4.27351,2340.0,2338.8,4.27567]
[1727946717529,5.42270798,2340.0,2338.8,4.27567]
[1727946717857,5.42270798,2340.0,2339.4,4.27451]
[1727946717858,4.27388,2339.8,2339.4,4.27451]
[1727946718016,4.27388,2339.8,2339.4,8.549]
[1727946718209,9.69554798,2340.4,2339.5,4.27435]
[1727946718441,4.2734,2340.1,2339.6,4.2741]
[1727946718656,4.27352,2340.0,2339.6,4.2741]
[1727946718861,4.27385,2339.9,2339.1,0.7702877]
[1727946719018,5.42270798,2340.4,2339.3,4.27471]
[1727946719019,4.27405,2339.7,2339.3,4.27471]
[1727946719555,4.27379,2339.9,2339.3,4.27471]
[1727946719556,4.27379,2339.9,2339.4,4.27449]
[1727946719757,8.54757,2339.9,2339.5,0.85492]
[1727946720057,4.27373,2339.9,2339.5,0.85492]
[1727946720351,6.579643,2340.2,2339.5,5.12924]
[1727946720352,4.27353,2340.0,2339.5,5.12924]
[1727946720552,4.27353,2340.0,2339.6,4.27412]
[1727946720725,4.27382,2339.9,2339.4,4.27449]
[1727946720930,4.27382,2339.9,2339.4,5.129417]
[1727946721449,4.27433,2339.6,2338.9,3.0]
[1727946721654,4.27412,2339.7,2339.3,4.27477]
[1727946721955,6.579643,2340.1,2339.8,4.27375]
[1727946722166,5.61590697,2340.3,2339.9,4.27366]
[1727946722167,4.27303,2340.3,2339.9,4.27366]
[1727946722368,4.27275,2340.5,2340.1,4.27324]
[1727946722556,1.34287697,2340.9,2340.0,0.427366]
[1727946722853,4.27159,2341.1,2340.7,4.27222]
[1727946723069,1.45863127,2341.4,2340.7,0.854462]
[1727946723214,1.45863127,2341.4,2341.2,4.27129]
[1727946723215,0.1157543,2341.4,2341.2,4.27129]
[1727946723945,4.3867043,2341.4,2340.5,3.0]
[1727946724129,4.3867043,2341.4,2340.5,0.55]
[1727946724454,0.1157543,2341.4,2340.7,4.27209]
[1727946724614,0.1157543,2341.4,2340.9,4.27175]
[1727946724811,0.1157543,2341.4,2340.6,3.0]
[1727946725060,4.27201,2340.9,2340.4,4.27276]
[1727946725262,8.54254,2341.3,2340.8,4.27203]
[1727946725559,4.27127,2341.3,2340.9,4.27182]
[1727946725865,4.27127,2341.3,2340.4,4.27272]
[1727946725866,4.27135,2341.2,2340.6,4.27227]
[1727946726021,4.27177,2341.0,2340.4,7.699892]
[1727946726211,8.54354,2341.0,2340.5,4.2725]
[1727946726417,8.54354,2341.0,2340.5,5.1697392]
[1727946726649,4.27177,2341.0,2340.6,4.27238]
[1727946727049,4.27151,2341.1,2340.7,4.27221]
[1727946727259,4.27114,2341.3,2340.8,4.27191]
[1727946727444,4.27114,2341.3,2340.8,4.31473442]
[1727946727729,4.27114,2341.3,2340.7,5.21640492]
[1727946727730,4.27158,2341.1,2340.7,0.94419492]
[1727946727937,4.27158,2341.1,2340.6,4.2723]
[1727946728168,4.27133,2341.2,2340.8,4.27196]
[1727946728320,9.80956228,2341.4,2340.8,4.27196]
[1727946728663,4.27115,2341.3,2340.8,4.27196]
[1727946729374,4.27115,2341.3,2340.7,4.69933]
[1727946729375,0.1157543,2341.4,2340.7,0.42723]
[1727946729657,0.1157543,2341.4,2341.3,4.27113]
[1727946729876,0.1157543,2341.4,2341.3,4.32545484]
[1727946730662,0.1157543,2341.4,2341.3,0.05432484]
[1727946730865,0.1157543,2341.4,2341.3,4.27113]
[1727946731035,0.1157543,2341.4,2341.3,5.17969683]
[1727946731369,0.1157543,2341.4,2341.3,0.854242]
[1727946732427,0.1157543,2341.4,2341.3,5.125372]
[1727946732625,0.1157543,2341.4,2341.3,0.854242]
[1727946732939,0.1157543,2341.4,2341.3,5.125372]
[1727946733622,0.1157543,2341.4,2341.3,8.125372]
[1727946733831,0.1157543,2341.4,2341.3,5.125372]
[1727946734986,0.1157543,2341.4,2341.3,8.675372]
[1727946737402,4.26794,2343.1,2342.6,4.26866]
[1727946737606,4.26794,2343.1,2342.7,4.26856]
[1727946737954,9.32172036,2343.3,2342.8,4.26839]
[1727946738213,4.26746,2343.4,2342.9,4.26813]